Cogmind - Beta 16 --- EXPLORER MODE // 2025.12.08 @ 13:16:32 Player: K.K.Y. Result: Destroyed by N1-W0B(R) with Subdweller Machine Gun Performance ------------- Evolutions (0) 0 Regions Visited (3) 600 Robots Destroyed (28) 140 Value Destroyed (539) 539 Prototype IDs (0) 0 Alien Tech Used (0) 0 Bonus (60) 60 TOTAL SCORE: 1339 Bonus ------- Follower Combat Kills 60 Cogmind --------- Core Integrity 0/250 Matter 290/300 Energy 97/100 System Corruption 0% Temperature Cool (0) Movement Core (300) Ox5 Location -10/Subcaves Parts ------- > --- POWER (1) -------- (None) > --- PROPULSION (2) --- (None) > --- UTILITY (3) ------ Medium Storage Unit Sensor Array > --- WEAPON (2) ------- Particle Gun Hammer > --- INVENTORY (10) --- Light Humpback Machine Analyzer Authchip [R/Combat] Authchip [Device] Authchip [Processor] Authchip [Processor] Authchip [Processor] Authchip [Weapon] Mining Laser Peak State ------------ > --- POWER ------------ Improved Ion Engine > --- PROPULSION ------- Light Treads > --- UTILITY ---------- Medium Storage Unit Sensor Array Improved Terrain Scanner > --- WEAPON ----------- Small Laser Particle Gun > --- INVENTORY -------- Huge Storage Unit Machine Analyzer Authchip [R/Combat] Authchip [Device] Authchip [Processor] Authchip [Processor] Authchip [Processor] Authchip [Weapon] Mining Laser Hammer [Rating: 14] Favorites ----------- Power Improved Ion Engine Engine Improved Ion Engine Propulsion Wheel Treads Light Treads Wheel Wheel Utility Sensor Array Device Sensor Array Storage Medium Storage Unit Processor Targeting Computer Weapon Small Laser Energy Gun Small Laser Impact Weapon Hammer Build | -11 -10 -10 -10 ------- Run | Yrd Mat Min Sub Slots Evolved 1 | . 1 . . Power . | . . . . Propulsion . | . . . . Utility 1 | . 1 . . Weapon . | . . . . Parts Attached 20 | 8 4 5 3 Power 3 | 1 . 2 . Engine 3 | 1 . 2 . Core . | . . . . Reactor . | . . . . Propulsion 6 | 3 . 3 . Treads 1 | . . 1 . Leg . | . . . . Wheel 5 | 3 . 2 . Hover . | . . . . Flight . | . . . . Utility 5 | 2 3 . . Device 2 | 1 1 . . Storage 2 | . 2 . . Processor 1 | 1 . . . Hackware . | . . . . Protection . | . . . . Artifact . | . . . . Weapon 6 | 2 1 . 3 Energy Gun 5 | 2 1 . 2 Energy Cannon . | . . . . Ballistic Gun . | . . . . Ballistic Cannon . | . . . . Launcher . | . . . . Special Weapon . | . . . . Impact Weapon 1 | . . . 1 Slashing Weapon . | . . . . Piercing Weapon . | . . . . Special Melee Weapon . | . . . . Unidentified Prototypes . | . . . . Parts Lost 5 | . . . 5 Power 1 | . . . 1 Propulsion 1 | . . . 1 Utility 1 | . . . 1 Weapon 2 | . . . 2 Highest Loss Streak 4 | . . . 4 To Critical Strikes . | . . . . Average Backups 8 | 1 6 10 9 Power . | . . . . Propulsion . | . . . . Utility 6 | . 4 7 7 Weapon 2 | . 1 3 2 Tool/Special . | . . . . Unused Backups 11 | . . . 11 Power . | . . . . Propulsion . | . . . . Utility 9 | . . . 9 Weapon 2 | . . . 2 Tool/Special . | . . . . Average Slot Usage (%) 89 | . 98 89 70 Engine 11 | . 12 12 6 Treads 6 | . . 9 7 Wheel 9 | . 24 5 . Device 24 | . 24 25 19 Storage 11 | . 9 12 12 Energy Gun 24 | . 24 25 20 Peak Build Rating 14 | 7 12 12 14 Average Rating 11 | 4 11 11 10 On Entrance 7 | . 7 12 12 Avg Prop Armor Cover (%) . | . . . . Naked Turns . | . . . . Heaviest Build 23 | 9 20 22 23 Greatest Support 20 | 20 20 20 20 Greatest Overweight (x) 5 | 2 2 1 5 Average Overweight (x) . | . . . 2 Largest Inventory Capacity 10 | 5 10 10 10 Average Capacity 9 | 5 8 10 10 Most Carried 10 | 4 10 10 10 Average Carried 8 | 1 6 10 9 Final Capacity 10 | 5 10 10 10 Final Carried 10 | 2 10 10 10 Class Distribution -------------------- 90% | Hacker-Mutant 9% | Scavenger-Mutant Dominant Class ---------------- Hacker-Mutant | -10/Materials Hacker-Mutant | -10/Mines Hacker-Mutant | -10/Subcaves Resources | -11 -10 -10 -10 ----------- Run | Yrd Mat Min Sub Matter Collected 420 | 280 60 60 20 Remotely . | . . . . Salvage Created 888 | 175 335 266 112 Parts 52 | 13 19 16 4 Haulers Intercepted 2 | . 2 . . Recyclers Shooed 2 | 1 1 . . Parts Field Recycled . | . . . . Retrieved Matter . | . . . . Parts Self-Destructed . | . . . . Prevented . | . . . . Parts Restored . | . . . . Kills | -11 -10 -10 -10 ------- Run | Yrd Mat Min Sub Combat Hostiles Destroyed 16 | . 7 6 3 Guns 16 | . 7 6 3 Classes Destroyed 9 | 2 5 1 1 Worker 1 | . 1 . . Tunneler 7 | 5 . 2 . Hauler 2 | . 2 . . Recycler 1 | 1 . . . Mechanic 1 | . 1 . . Swarmer 6 | . 4 2 . Grunt 5 | . 3 2 . Sentry 2 | . . 2 . Subdweller 3 | . . . 3 Best Kill Streak 5 | 5 3 2 2 Combat Bots Only 2 | . 2 2 2 Max Kills in Single Turn 1 | 1 1 1 1 Gunslinging . | . . . . Exploded . | . . . . Melee . | . . . . Uniques/NPCs Destroyed . | . . . . Combat | -11 -10 -10 -10 -------- Run | Yrd Mat Min Sub Hostile Shots Fired 117 | . 23 41 53 Missed 34 | . 7 13 14 Hits 83 | . 16 28 39 Projectile 83 | . 16 28 39 Critical Strikes 4 | . 2 1 1 Damage Taken 865 | . 130 232 503 Core 259 | . 62 69 128 Absorbed by Shields . | . . . . Ignored by Resistances 528 | . 82 145 301 Core Remaining (%) 100 | 100 . . . Volleys Fired 102 | 12 35 24 31 Largest 2 | 2 2 2 2 Hottest 105 | 90 90 90 105 Shots Fired 197 | 24 69 48 56 Gun 197 | 24 69 48 56 Cannon . | . . . . Launcher . | . . . . Special . | . . . . Kinetic . | . . . . Thermal 197 | 24 69 48 56 Explosive . | . . . . Electromagnetic . | . . . . Robot Hit Streak 47 | 18 25 23 47 Robot Miss Streak 1 | . 1 1 1 Penetration Max . | . . . . Secondary Targets 2 | . . 1 1 Max Gunslinging Chain 1 | . . 1 1 Shots Hit Robots 172 | 18 59 43 52 Core Hits 52 | 7 20 17 8 Critical Kills . | . . . . Critical Parts Destroyed . | . . . . Critical Strikes 6 | . 2 2 2 Burn 6 | . 2 2 2 Melee Attacks 1 | . . . 1 Impact 1 | . . . 1 Slashing . | . . . . Piercing . | . . . . Sneak Attacks . | . . . . Combat Hostiles . | . . . . Follow-up Attacks . | . . . . Damage Inflicted 1937 | 233 693 503 508 Guns 1919 | 233 693 503 490 Cannons . | . . . . Explosions . | . . . . Melee 18 | . . . 18 Ramming . | . . . . Kinetic . | . . . . Thermal 1919 | 233 693 503 490 Explosive . | . . . . Electromagnetic . | . . . . Impact 18 | . . . 18 Slashing . | . . . . Piercing . | . . . . Highest Corruption . | . . . . Average Corruption . | . . . . Corruption Purged . | . . . . Corruption Blocked . | . . . . Overload Shots . | . . . . Overflow Damage . | . . . . Projectiles . | . . . . Explosions . | . . . . Melee . | . . . . Knockbacks . | . . . . Impact . | . . . . Kinetic . | . . . . Secondary . | . . . . Self-Inflicted Damage . | . . . . Shots . | . . . . Rammed . | . . . . Targets Rammed . | . . . . Kicked . | . . . . Crushed . | . . . . Highest Temperature 243 | 90 222 243 . Average Temperature 64 | 39 59 82 . Received Heat Transfer 423 | . 117 174 132 Siege Activations . | . . . . Martial Activations . | . . . . Shielding Activations . | . . . . Robots Disrupted . | . . . . Combat Hostiles . | . . . . Robots Corrupted . | . . . . Combat Hostiles . | . . . . Parts Fried . | . . . . Impact Corruptions . | . . . . Robots Melted 1 | . 1 . . Combat Hostiles . | . . . . Parts Melted 10 | 1 3 3 3 Heat Transferred 5406 | 619 1983 1487 1317 Parts Sabotaged . | . . . . Parts Stolen . | . . . . Parts Stripped . | . . . . Power Chain Reactions . | . . . . Alert | -11 -10 -10 -10 ------- Run | Yrd Mat Min Sub Maximum Alert Level . | . . . . Low Security (%) 100 | 100 100 100 . Level 1 . | . . . . Level 2 . | . . . . Level 3 . | . . . . Level 4 . | . . . . Level 5 . | . . . . High Security . | . . . . Max Security . | . . . . Peak Influence 65 | 15 60 65 . Initial . | . . . . Average 8 | 2 13 6 . Influence Increases 486 | 30 239 217 . Destroy 0b10 Robot/C 300 | . 140 160 . Destroy 0b10 Robot/NC 60 | 30 20 10 . Destroy Leader 64 | . 34 30 . Allied During Kill 2 | . . 2 . Lose Combat Pursuer 60 | . 45 15 . Influence Decreases 486 | 30 239 217 . Time Decay 486 | 30 239 217 . Squads Dispatched . | . . . . Investigation . | . . . . Extermination . | . . . . Reinforcement . | . . . . Assault . | . . . . Garrison . | . . . . Intercept . | . . . . Searches Triggered . | . . . . Construction Impeded . | . . . . Haulers Reinforced . | . . . . Active Scanning Responses . | . . . . Cargo Convoy Interrupts . | . . . . Stealth | -11 -10 -10 -10 --------- Run | Yrd Mat Min Sub Distress Signals 2 | . 2 . . Communications Jammed . | . . . . Distress Signals . | . . . . Times Spotted 28 | . 15 8 5 Peak Tracking Total 3 | . 3 3 2 Tactical Retreats 4 | . 3 1 . Traps | -11 -10 -10 -10 ------- Run | Yrd Mat Min Sub Traps Triggered 4 | . 4 . . Indirectly . | . . . . Trap Hack Attempts . | . . . . Triggered . | . . . . Disarmed . | . . . . Reprogrammed . | . . . . Reused . | . . . . Traps Extracted . | . . . . Installed . | . . . . Triggered . | . . . . Machines | -11 -10 -10 -10 ---------- Run | Yrd Mat Min Sub Machines Disabled . | . . . . Max in Single Turn . | . . . . Machines Repaired . | . . . . Machines Dismantled . | . . . . Machines Sabotaged . | . . . . Overloaded Fab Kills . | . . . . Hacking | -11 -10 -10 -10 --------- Run | Yrd Mat Min Sub Machines Accessed 2 | . 2 . . Terminals 1 | . 1 . . Fabricators . | . . . . Repair Stations . | . . . . Recycling Units 1 | . 1 . . Scanalyzers . | . . . . Garrison Access . | . . . . Total Hacks 4 | . 4 . . Successful 1 | . 1 . . Failed 3 | . 3 . . Catastrophic . | . . . . Database Lockouts . | . . . . Manual 1 | . 1 . . Terminals 1 | . 1 . . Fabricators . | . . . . Repair Stations . | . . . . Recycling Units 3 | . 3 . . Scanalyzers . | . . . . Garrison Access . | . . . . Terminal Hacks . | . . . . Fabricator Hacks . | . . . . Repair Station Hacks . | . . . . Recycling Unit Hacks . | . . . . Scanalyzer . | . . . . Garrison Access Hacks . | . . . . Unauthorized Hacks 1 | . 1 . . Terminals 1 | . 1 . . Botnet 1 | . 1 . . Fabricators . | . . . . Repair Stations . | . . . . Recycling Units . | . . . . Scanalyzers . | . . . . Garrison Access . | . . . . Data Cores Recovered . | . . . . Used . | . . . . Hacking Detections 1 | . 1 . . Full Trace Events 1 | . 1 . . Feedback Events . | . . . . Feedback Blocked . | . . . . Robot Schematics Acquired . | . . . . Robots Built . | . . . . Authchips . | . . . . Time . | . . . . Total Robot Build Rating . | . . . . Part Schematics Acquired . | . . . . Parts Built . | . . . . Authchips . | . . . . Time . | . . . . Total Part Build Rating . | . . . . Part Studies Acquired . | . . . . Parts Repaired . | . . . . Time . | . . . . Parts Recycled . | . . . . Recycled Matter . | . . . . Retrieved Matter . | . . . . Retrieved Components . | . . . . Parts Scanalyzed . | . . . . Part Schematics Acquired . | . . . . Parts Damaged . | . . . . Bothacking | -11 -10 -10 -10 ------------ Run | Yrd Mat Min Sub Used RIF Installer . | . . . . Robots Hacked . | . . . . Non-combat . | . . . . Combat . | . . . . Robot Hacks Applied . | . . . . Relay Couplers Released . | . . . . Fabnet Peak Effective % . | . . . . Robots Rewired . | . . . . Allies Hacked . | . . . . Hacks Repelled . | . . . . Allies | -11 -10 -10 -10 -------- Run | Yrd Mat Min Sub Total Allies 3 | . . 3 . Largest Group 3 | . . 3 3 Highest-Rated Group 40 | . . 40 40 Highest-Rated Ally 16 | . . 16 16 Total Orders . | . . . . Ally Attacks 17 | . . 9 8 Total Damage 82 | . . 82 . Kills 2 | . . 2 . Allies Corrupted . | . . . . Allies Melted . | . . . . Intel | -11 -10 -10 -10 ------- Run | Yrd Mat Min Sub Active Infowar (turns) 2363 | 123 607 1272 361 Sensors 2363 | 123 607 1272 361 Terrain 2094 | . 605 1272 217 Robot Analysis Total . | . . . . Derelict Logs Recovered . | . . . . Drone Launches . | . . . . Drone Recoveries . | . . . . Exploration | -11 -10 -10 -10 ------------- Run | Yrd Mat Min Sub Turns Passed 2371 | 131 607 1272 361 Spaces Moved 1276 | 85 442 650 99 Core 98 | 59 3 . 36 Treads 464 | . . 401 63 Legs . | . . . . Wheels 714 | 26 439 249 . Hover . | . . . . Flight . | . . . . Fastest Speed 50 | 50 80 80 160 Average Speed 144 | 89 80 178 255 Slowest Speed 300 | 150 150 240 300 Overloaded Moves . | . . . . Propulsion Burnouts . | . . . . Robots Hopped . | . . . . Potential Cave-ins . | . . . . Cave-ins Triggered . | . . . . Exploration Rate (%) 45 | 4 75 95 7 Regions Visited 3 Branch Regions 2 Pre-discovered Areas . | . . . . Known Exits Taken 3 | 1 1 1 . Unknown Exits Taken . | . . . . Scrap Searched 1 | . . 1 . Spaces Dug . | . . . . Terrain Destroyed . | . . . . Melee . | . . . . Projectile . | . . . . AOE . | . . . . Terrain Rammed . | . . . . Walls Destroyed . | . . . . Machines Disabled . | . . . . Actions | -11 -10 -10 -10 --------- Run | Yrd Mat Min Sub Total 1610 | 115 624 719 152 Wait 172 | . 123 36 13 Move 1273 | 84 441 649 99 Hop . | . . . . Pick Up 27 | 10 15 . 2 Fast Attach 1 | . . . 1 Attach 13 | 7 5 . 1 Detach 1 | . 1 . . Swap 9 | 1 2 5 1 Drop 11 | 1 2 5 3 Fire 102 | 12 35 24 31 Melee 1 | . . . 1 Ram . | . . . . Kick . | . . . . Crush . | . . . . Escape Stasis . | . . . . Rewire . | . . . . Trap . | . . . . Miscellaneous . | . . . . Route ------- -11/Scrapyard -10/Materials (discovered 4 exits: *Mat x2 / *Min / Sub) -10/Mines (discovered 4 exits: *Mat x2 / *Exi / *Sub) -10/Subcaves History --------- Turn | Location | Event 8 | -11/Scrapyard | Identified exit to Materials 8 | -11/Scrapyard | Discovered exit to Materials (range 15) 132 | -11/Scrapyard | Entered Materials 132 | -10/Materials | Evolved 1 slot: Utility x1 310 | -10/Materials | Build established: Hacker-Mutant 462 | -10/Materials | Identified exit to Materials 462 | -10/Materials | Discovered exit to Materials (range 12) 584 | -10/Materials | Discovered exit to Materials (range 16) 628 | -10/Materials | Identified exit to Subcaves 628 | -10/Materials | Discovered exit to Subcaves (range 15) 683 | -10/Materials | Identified exit to Mines 683 | -10/Materials | Discovered exit to Mines (range 15) 739 | -10/Materials | Entered Mines 842 | -10/Mines | Deemed a non-threat by the Exiles lab entrance 843 | -10/Mines | Identified exit to Exiles 843 | -10/Mines | Discovered exit to Exiles (range 5) 1015 | -10/Mines | Core integrity fell below 50% 1204 | -10/Mines | Discovered exit to Materials (range 5) 1209 | -10/Mines | Assisted by bots powering up and referring to "LRC-V3" 1567 | -10/Mines | Discovered exit to Materials (range 6) 1992 | -10/Mines | Discovered exit to Subcaves (range 7) 2011 | -10/Mines | Entered Subcaves 2011 | -10/Subcaves | Accompanied by 3 allies 2012 | -10/Subcaves | Approached by a straggling Scientist 2101 | -10/Subcaves | Lost 4 allies 2244 | -10/Subcaves | Core integrity fell below 20% 2281 | -10/Subcaves | Lost 4 parts (1p1n1u1w) 2372 | -10/Subcaves | Destroyed by N1-W0B(R) with Subdweller Machine Gun Last Messages --------------- 02141_ Subatomizers dissect the Machine Analyzer. 02154_ Dropped Sml. Laser. 02155_ Acquired 10 matter. 02160_ Dropped Lgt. Cannon. 02161_ Acquired Machine Analyzer. 02166_ Subatomizers dissect the Aluminum Leg. 02207_ Imp. Ion Engine destroyed. 02228_ Imp. Terrain Scanner destroyed. 02237_ Lgt. Treads destroyed. 02247_ Sub. Optics melted. 02247_ EB-3D8(R) destroyed. 02247_ Switching to secondary target: 4B-N4Y(R). 02247_ 4B-N4Y(R) suffers critical hit (Burn). 02250_ Sml. Laser destroyed. 02253_ 4B-N4Y(R) suffers critical hit (Burn). 02257_ Sub. Monowheel melted. 02257_ 4B-N4Y(R) destroyed. 02264_ Dropped Huge Storage Unit. 02265_ Acquired Lgt. Humpback. Map ----- +----------------------------------------------------+ | ??????????#???## ###?#??????????????????? | | ???????#??????# # # ### ""???????????? | | ?????????#????# ""???????????? | | ??????????????# ""????????????? | | ??????????????## # # " ????????????? | | ???????????????# ###? ## ???????????? | | ??????????????## #??? ##???????????????? | | ??????????????# #????#????????????????? | | ??????????????#### #????"#???????????????? | | ?????????????????# #??? #???????????????? | | ????????????????## ##?? #####????????????? | | ????????????????# #### #????????????? | | ???????????????## #????????????? | | ???????????????# # #????????????? | | ???????????????# # #????????????????? | | ???????????????# ##????????????????? | | ???????????????# ## #???????????????? | | ???????????????## #?# ????????????? | | ???????????????## #?? ???????????? | | ???????????????# #??? ## ????????????? | | ???????????????## #??? ##?? ????????????? | | ????????????????# #????##????????????????? | | ????????????????# #??????????????????????? | | ???????????????## #??????????????????????? | | ???????????????# #??????????????????????? | | ???????????????# @#??????????????????????? | | ???????????????# RR##??????????????????????? | | ???????????????# #???????????????????????? | | ???????????????## ???????????????????????? | | ????????????????# ???????????????????????? | | ????????????????# ??????????????????????? | | ???????????????? #??????????????????????? | | ???????????????? ##??????????????????????? | | ????????????????####???????????????????????? | | ???????????????????????????????????????????? | | ???????????????????????????????????????????? | | ???????????????????????????????????????????? | | ???????????????????????????????????????????? | | ???????????????????????????????????????????? | | ???????????????????????????????????????????? | | ???????????????????????????????????????????? | | ???????????????????????????????????????????? | | ???????????????????????????????????????????? | | ???????????????????????????????????????????? | | ???????????????????????????????????????????? | | ???????????????????????????????????????????? | | ???????????????????????????????????????????? | | ???????????????????????????????????????????? | | ???????????????????????????????????????????? | | ???????????????????????????????????????????? | +----------------------------------------------------+ Best States ------------- Heat Dissipation 25 Energy Generation 12 Energy Capacity 265 Matter Stores 300 Matter Capacity 300 Sight Range 16 Robot Scan Range 14 Terrain Scan Range 16 Terrain Scan Density 10 Resistance: KI 35 Resistance: TH 35 Resistance: EX 35 Resistance: EM 35 Resistance: I 35 Resistance: S 35 Resistance: P 35 Evasion (%) 50 Targeting Accuracy 5 Recoil Reduction 1 Offensive Hacking 20 Authchip Count 6 Item Schematics ----------------- None Robot Schematics ------------------ None Fabricated ------------ Nothing Repaired ---------- Nothing Studied --------- None Alien Tech Used ----------------- None Achievements -------------- None Challenges ------------ None Game ------ Seed ReactiveJunkObliterator Manual? 0 Play Time 00:11:07 Cumulative 176.2 hours Start 2025.12.08 @ 13:06:53 End 2025.12.08 @ 13:16:32 Sessions 1 Manual Loads 0 Difficulty Explorer Special Mode None Game No. 246 Rogue 0 Adventurer 0 Explorer 246 Win Type - Total 0 Types 0/0/0/0/0/0/0/0/0/0 Lore% 70 Gallery% 67 Achievement% 53 Wizard Run 0 Options --------- Layout 1 ASCII 0 Keyboard 0 Movement Mouse Keybinds 0 Fullscreen 1 Font 24/Smallcaps Map View 50x35 Zoom Use 0% Tactical HUD 1 Map Filters NONE Filters NONE Steam 1 RUN: 5d5e1031-d72f-4277-8254-6539041e792d